bitfinex/quotes_SOLUSD_20240711
["timestamp","ask_amount","ask_price","bid_price","bid_amount"]
[1720714343139,20.0,138.72,138.64,107.245]
[1720714343346,20.0,138.72,138.67,7.211]
[1720714343518,20.0,138.72,138.66,25.2411]
[1720714343722,20.0,138.73,138.66,25.2411]
[1720714343933,20.0,138.73,138.66,25.2412]
[1720714344132,20.0,138.73,138.67,7.2113]
[1720714344337,22.933,138.77,138.67,200.0]
[1720714344543,0.04286699,138.78,138.75,7.2072]
[1720714344934,0.04286699,138.78,138.74,18.0191]
[1720714345132,0.04286699,138.78,138.71,100.0]
[1720714345133,0.04286699,138.78,138.77,7.2061]
[1720714345838,0.04286699,138.78,138.76,18.0164]
[1720714346040,0.04286699,138.78,138.75,7.207]
[1720714346238,0.04286699,138.78,138.74,7.5475]
[1720714346440,0.04286699,138.78,138.74,0.34]
[1720714346639,0.04286699,138.78,138.74,0.17]
[1720714346836,0.04286699,138.78,138.73,25.2276]
[1720714347824,0.04286699,138.78,138.73,18.0195]
[1720714348031,0.04286699,138.78,138.71,136.0448]
[1720714348032,0.04286699,138.78,138.75,18.0178]
[1720714348250,0.04286699,138.78,138.76,7.2066]
[1720714348663,0.04286699,138.78,138.77,7.2061]
[1720714348852,0.04286699,138.78,138.77,7.5461]
[1720714350655,0.04286699,138.78,138.77,107.5461]
[1720714350840,0.04286699,138.78,138.77,7.5461]
[1720714353057,0.04286699,138.78,138.77,107.5461]
[1720714353235,0.04286699,138.78,138.77,127.5461]
[1720714357545,0.04286699,138.78,138.77,145.5615]
[1720714358129,0.04286699,138.78,138.77,45.5615]
[1720714358334,0.8261568,138.82,138.81,25.2142]
[1720714358554,0.8261568,138.82,138.81,25.5542]
[1720714359547,0.8261568,138.82,138.81,25.2142]
[1720714360061,0.8261568,138.82,138.81,25.3842]
[1720714361078,0.8261568,138.82,138.81,25.5542]
[1720714361359,15.4352,138.94,138.89,7.1998]
[1720714361943,15.4352,138.94,138.91,7.1988]
[1720714362351,15.4352,138.94,138.9,24.3494]
[1720714362664,15.4352,138.94,138.91,7.1988]
[1720714362865,15.4352,138.94,138.9,0.17]
[1720714363072,15.4352,138.94,138.91,0.17]
[1720714363257,0.8261568,138.96,138.94,7.1968]
[1720714363762,0.8261568,138.96,138.92,7.1982]
[1720714363953,0.8261568,138.96,138.91,7.3687]
[1720714364264,0.8261568,138.96,138.92,17.9954]
[1720714364572,0.8261568,138.96,138.93,7.3674]
[1720714364773,0.8261568,138.96,138.94,7.1973]
[1720714365281,0.8261568,138.96,138.92,18.1654]
[1720714365443,0.8261568,138.96,138.92,17.9954]
[1720714365944,0.8261568,138.96,138.93,0.17]
[1720714366366,0.8261568,138.96,138.95,7.1968]
[1720714366577,0.8261568,138.96,138.92,7.1983]
[1720714366740,0.8261568,138.96,138.93,7.3674]
[1720714366944,0.8261568,138.96,138.93,7.1978]
[1720714367150,0.8261568,138.96,138.95,7.1968]
[1720714367556,0.8261568,138.96,138.95,7.3668]
[1720714367756,0.8261568,138.96,138.95,7.5368]
[1720714369460,0.8261568,138.96,138.95,27.5368]
[1720714369656,0.8261568,138.96,138.95,127.5368]
[1720714372683,6.1329,139.07,139.0,17.9849]
[1720714372886,6.1329,139.07,139.03,7.1925]
[1720714373069,6.1329,139.07,139.02,17.9826]
[1720714373070,6.1329,139.07,139.02,25.1757]
[1720714373460,6.1329,139.07,139.01,0.34]
[1720714373688,6.1329,139.07,139.02,17.983]
[1720714373999,6.1329,139.07,139.04,7.192]
[1720714374167,15.5947,139.08,139.05,7.1916]
[1720714374570,15.5947,139.08,139.04,25.172]
[1720714374782,15.5947,139.08,139.03,0.34]
[1720714375000,15.5947,139.08,139.04,0.17]
[1720714376094,15.5947,139.08,139.01,25.1773]
[1720714376391,15.5947,139.08,139.02,0.17]
[1720714376595,15.5947,139.08,139.01,25.1723]
[1720714376888,15.5947,139.08,139.01,17.9787]
[1720714377192,20.0,139.07,138.98,17.9873]
[1720714377382,20.0,139.07,138.99,7.1947]
[1720714377902,13.3453,139.06,138.98,17.9873]
[1720714378191,20.0,139.05,138.97,7.1957]
[1720714378487,20.0,139.05,138.95,585.5]
[1720714378707,20.0,139.05,138.98,25.1826]
[1720714378906,20.0,139.05,138.95,485.5]
[1720714379188,20.0,139.05,138.98,7.1952]
[1720714379368,20.0,139.05,138.99,7.1945]
[1720714379989,20.0,139.05,138.98,7.1948]
[1720714380185,20.0,139.05,138.98,7.1951]
[1720714380372,20.0,139.05,138.97,18.1585]
[1720714380574,15.6196,139.03,138.95,385.5]
[1720714380987,20.0,139.02,138.96,17.9904]
[1720714381196,6.1539,139.06,138.96,100.0]
[1720714381403,6.1539,139.06,139.0,25.1787]
[1720714381603,6.1539,139.06,138.99,7.1947]
[1720714381905,13.345,139.06,138.97,7.1954]
[1720714382197,7.1917,139.05,138.96,25.3559]
[1720714382395,7.1927,139.03,138.95,385.5]
[1720714382611,27.1922,139.04,138.95,392.6967]
[1720714383124,15.7382,139.03,138.9,115.5879]
[1720714383407,15.5682,139.03,138.95,17.9918]
[1720714383618,20.0,139.02,138.96,7.1961]
[1720714383779,20.0,139.02,138.95,25.1885]
[1720714383983,20.0,139.02,138.95,17.9918]
[1720714384415,6.2346,139.01,138.92,7.245]
[1720714384620,20.0,139.0,138.96,7.1962]
[1720714384994,15.5682,139.03,138.95,135.9839]
[1720714385313,15.5682,139.03,138.97,17.9886]
[1720714385692,15.5682,139.03,138.98,0.17]
[1720714386107,15.5682,139.03,138.99,17.9861]
[1720714386307,15.5682,139.03,139.0,7.3642]
[1720714386507,6.2346,139.04,139.0,7.3642]
[1720714386697,6.2346,139.04,139.0,0.17]
[1720714386900,6.2346,139.04,138.96,100.0]
[1720714386901,13.4271,139.04,138.96,17.9899]
[1720714387088,6.2346,139.04,138.95,385.5]
[1720714387295,7.1932,139.02,138.95,385.5]
[1720714387495,20.0,139.01,138.95,385.5]
[1720714387912,20.0,139.01,138.93,17.9937]
[1720714388233,20.0,139.01,138.94,7.1972]
[1720714388587,20.0,139.02,138.95,7.1966]
[1720714388796,13.4269,139.04,138.96,7.1963]
[1720714388797,20.0,139.03,138.96,7.1963]
[1720714388989,20.0,139.03,138.97,7.1957]
[1720714389512,20.0,139.03,138.96,0.17]
[1720714389703,20.0,139.03,138.96,0.34]
[1720714389902,27.1927,139.03,138.96,0.34]
[1720714390920,16.1456,139.01,138.93,7.1975]
[1720714391139,20.0,139.0,138.92,7.245]
[1720714391414,7.195,138.99,138.92,7.245]
[1720714391721,20.0,138.98,138.91,7.245]
[1720714392110,20.0,138.98,138.92,7.245]
[1720714392417,20.0,139.0,138.93,18.1644]
[1720714392808,20.0,139.0,138.95,17.9919]
[1720714393121,20.0,139.0,138.94,7.1972]
[1720714393320,20.0,139.0,138.93,0.17]
[1720714393321,20.0,139.0,138.95,0.17]
[1720714393522,20.0,139.0,138.93,0.17]
[1720714393694,20.0,139.0,138.93,7.3677]
[1720714393898,20.0,139.0,138.94,7.3668]
[1720714394118,20.0,139.0,138.95,7.3667]
[1720714394319,16.1456,139.01,138.97,7.1955]
[1720714394698,16.1456,139.01,138.96,7.3661]
[1720714395429,16.1456,139.01,138.96,0.17]
[1720714395613,16.1456,139.01,138.96,7.536]
[1720714395795,16.1456,139.01,138.97,17.9893]
[1720714396425,16.1456,139.01,138.96,0.34]
[1720714396628,23.3394,139.01,138.93,7.1977]
[1720714396917,16.1456,139.01,138.94,7.1971]
[1720714397122,20.0,139.0,138.94,7.1971]
[1720714397332,20.0,139.0,138.95,17.9917]
[1720714397919,20.0,139.0,138.92,7.245]
[1720714398249,7.1954,138.98,138.92,7.245]
[1720714398526,6.3456,138.99,138.92,7.245]
[1720714398527,20.0,138.97,138.92,7.245]
[1720714398919,20.0,138.97,138.9,7.245]
[1720714399531,20.0,138.97,138.9,25.2433]
[1720714399737,20.0,138.98,138.92,7.245]
[1720714400101,27.1953,138.98,138.92,7.245]
[1720714400596,27.1953,138.98,138.91,7.245]
[1720714400820,7.1958,138.97,138.91,7.245]
[1720714401123,15.3481,138.95,138.91,7.245]
[1720714401707,15.3481,138.95,138.92,7.245]
[1720714402020,20.0,138.94,138.92,4.15779639]
[1720714402191,6.6508,138.93,138.92,4.15779639]
[1720714402606,26.6508,138.93,138.85,7.2016]
[1720714402821,20.0,138.92,138.86,7.214]
[1720714403008,20.0,138.92,138.86,14.4154]
[1720714403420,20.0,138.92,138.88,7.214]
[1720714404007,6.6508,138.93,138.88,7.214]
[1720714404341,6.6508,138.93,138.9,7.214]
[1720714405520,6.6508,138.93,138.91,7.214]
[1720714406627,6.6508,138.93,138.92,7.214]
[1720714406826,26.6508,138.93,138.92,7.214]
[1720714407539,15.3481,138.95,138.92,7.214]
[1720714407727,20.0,138.94,138.91,7.214]
[1720714410046,20.0,138.94,138.92,7.214]
[1720714411443,22.1834,138.99,138.92,7.214]
[1720714411645,22.1834,138.99,138.93,0.17]
[1720714411847,22.1834,138.99,138.92,14.4122]
[1720714412647,22.1834,138.99,138.92,7.214]
[1720714412838,20.0,138.98,138.92,7.214]
[1720714413239,22.1834,138.99,138.93,19.77324598]
[1720714413542,22.1834,138.99,138.94,7.197]
[1720714413859,2.90437042,139.02,138.95,17.9913]
[1720714414038,22.1834,139.03,138.96,0.17]
[1720714414357,22.1834,139.03,138.97,17.9893]
[1720714414559,22.1834,139.03,138.98,0.17]
[1720714415747,20.0,139.02,138.98,0.17]
[1720714416047,22.1834,139.03,138.96,7.3661]
[1720714416343,22.1834,139.03,138.97,7.1957]
[1720714417261,20.0,139.02,138.97,7.1957]
[1720714417549,20.0,139.02,138.98,0.17]
[1720714417761,20.0,139.02,138.96,17.9905]
[1720714417965,20.0,139.02,138.97,7.1955]
[1720714418148,20.0,139.02,138.96,17.9905]
[1720714418332,27.1933,139.02,138.94,7.1972]
[1720714418530,20.0,139.02,138.94,7.1972]
[1720714418842,20.0,139.02,138.95,7.1967]
[1720714419034,20.0,139.02,138.95,25.1886]
[1720714419649,27.1935,139.02,138.93,7.1975]
[1720714419824,20.0,139.02,138.92,32.4072]
[1720714420026,7.1942,139.0,138.92,32.4072]
[1720714420248,20.0,139.02,138.93,7.1977]
[1720714420249,20.0,138.99,138.93,7.1977]
[1720714420461,7.1961,138.97,138.92,7.214]
[1720714420772,27.1964,138.96,138.92,7.214]
[1720714420933,20.0,138.96,138.86,18.0025]
[1720714421127,7.1973,138.94,138.86,25.2036]
[1720714421524,20.0,138.93,138.87,7.2007]
[1720714422171,7.1976,138.94,138.86,18.0025]
[1720714422461,20.0,138.93,138.86,25.2038]
[1720714422665,20.0,138.93,138.86,18.0025]
[1720714422832,27.1978,138.93,138.84,7.2024]
[1720714423445,29.2538,138.92,138.83,25.2097]
[1720714423730,20.0,138.91,138.83,25.2097]
[1720714423931,20.0,138.91,138.84,7.2023]
[1720714424336,20.0,138.91,138.83,25.2097]
[1720714425360,20.0,138.91,138.84,7.2024]
[1720714425533,20.0,138.91,138.83,25.2096]
[1720714425735,27.199,138.91,138.83,25.2096]
[1720714426053,27.199,138.91,138.83,18.0068]
[1720714426646,7.1994,138.9,138.82,7.2033]
[1720714426871,7.1994,138.9,138.8,18.0105]
[1720714426872,20.0,138.89,138.83,7.2029]
[1720714427154,7.1994,138.9,138.82,25.2119]
[1720714427362,20.0,138.89,138.82,25.2119]
[1720714427560,20.0,138.89,138.79,25.2175]
[1720714427762,20.0,138.89,138.79,18.0125]
[1720714427763,7.201,138.87,138.79,18.0125]
[1720714427965,49.1664,138.86,138.78,7.2055]
[1720714428262,49.1664,138.86,138.76,18.0155]
[1720714428263,41.9649,138.86,138.76,18.0155]
[1720714428459,7.2022,138.85,138.77,7.2058]
[1720714428670,20.0,138.84,138.78,7.2056]
[1720714428838,41.9649,138.86,138.78,7.2056]
[1720714429357,41.9649,138.86,138.8,7.2045]
[1720714429563,41.9649,138.86,138.76,100.0]
[1720714429740,41.9649,138.86,138.81,7.204]
[1720714429936,41.9649,138.86,138.8,18.0113]
[1720714430339,41.9649,138.86,138.81,45.0]
[1720714430655,20.0,138.86,138.81,52.2038]
[1720714430845,20.0,138.86,138.81,45.0]
[1720714431045,27.2005,138.88,138.81,45.0]
[1720714431286,7.2011,138.87,138.81,45.0]
[1720714431466,20.0,138.86,138.78,7.2055]
[1720714431644,7.2021,138.85,138.77,25.2202]
[1720714431843,20.0,138.84,138.77,25.2202]
[1720714432045,27.2017,138.86,138.77,18.0143]
[1720714432247,27.2017,138.86,138.78,7.2056]
[1720714432646,20.0,138.86,138.79,7.2048]
[1720714432842,7.201,138.87,138.78,7.2055]
[1720714433167,20.0,138.86,138.78,7.2055]
[1720714433359,27.2015,138.86,138.78,7.2055]
[1720714433556,7.2024,138.85,138.77,18.0143]
[1720714433767,20.0,138.84,138.77,25.2204]
[1720714433954,21.8569,138.83,138.74,18.0183]
[1720714434155,20.0,138.82,138.74,18.0183]
[1720714434475,20.0,138.82,138.76,7.2065]
[1720714434648,20.0,138.82,138.75,7.207]
[1720714435266,27.2035,138.82,138.74,25.2259]
[1720714435452,27.2035,138.82,138.74,18.0183]
[1720714435647,27.2035,138.82,138.74,25.226]
[1720714436059,20.0,138.82,138.74,25.226]
[1720714436258,20.0,138.82,138.75,7.207]
[1720714436775,27.2036,138.82,138.74,18.0183]
[1720714437078,27.2036,138.82,138.75,45.0]
[1720714437449,7.2041,138.81,138.75,45.0]
[1720714437649,27.2036,138.82,138.75,45.0]
[1720714438076,20.0,138.82,138.75,45.0]
[1720714438256,22.0269,138.83,138.75,45.0]
[1720714438454,20.17,138.82,138.75,45.0]
[1720714439173,27.3736,138.82,138.75,45.0]
[1720714439369,20.17,138.82,138.74,52.2076]
[1720714439555,27.3736,138.82,138.74,52.2076]
[1720714440061,20.0,138.82,138.75,25.2249]
[1720714440264,20.0,138.82,138.76,45.0]
[1720714440475,20.0,138.82,138.73,0.17]
[1720714440766,28.16,138.81,138.73,52.2078]
[1720714440972,20.0,138.8,138.74,7.3775]
[1720714441149,20.0,138.8,138.75,45.0]
[1720714441350,20.0,138.8,138.73,45.0]
[1720714441351,27.2046,138.8,138.73,45.0]
[1720714441655,20.0,138.8,138.74,18.1884]
[1720714441852,49.8469,138.83,138.76,7.2063]
[1720714442053,20.0,138.82,138.77,45.0]
[1720714442684,49.8469,138.83,138.77,45.0]
[1720714442970,21.8569,138.83,138.78,7.2052]
[1720714443188,50.7432,138.86,138.79,45.0]
[1720714443392,50.7432,138.86,138.8,7.2044]
[1720714443565,50.7432,138.86,138.81,45.0]
[1720714444064,50.7432,138.86,138.82,7.2031]
[1720714444267,0.18469,138.89,138.82,7.2031]
[1720714444268,27.99,138.88,138.83,45.0]
[1720714444496,0.18469,138.89,138.83,52.2029]
[1720714445180,0.18469,138.89,138.83,45.0]
[1720714445993,0.18469,138.89,138.83,52.203]
[1720714446396,0.18469,138.89,138.83,45.0]
[1720714447494,0.18469,138.89,138.85,7.2018]
[1720714447676,0.18469,138.89,138.86,45.0]
[1720714447877,0.18469,138.89,138.88,7.2004]
[1720714448084,0.18469,138.89,138.88,52.5404]
[1720714449406,0.18469,138.89,138.88,45.34]
[1720714449573,0.18469,138.89,138.87,52.2009]
[1720714449776,0.18469,138.89,138.87,45.0]
[1720714450505,0.18469,138.89,138.87,52.2008]
[1720714450809,0.18469,138.89,138.87,45.0]
[1720714451682,0.18469,138.89,138.84,7.2021]
[1720714452091,0.18469,138.89,138.85,18.0041]
[1720714452293,0.18469,138.89,138.88,7.2004]
[1720714452596,0.18469,138.89,138.87,25.2027]
[1720714452795,0.18469,138.89,138.88,7.2004]
[1720714453006,0.18469,138.89,138.88,52.2004]
[1720714453612,0.18469,138.89,138.88,52.5404]
[1720714454383,0.18469,138.89,138.88,45.17]
[1720714455092,0.18469,138.89,138.88,45.0]
[1720714455706,0.18469,138.89,138.84,18.0059]
[1720714455992,0.18469,138.89,138.85,7.2019]
[1720714456192,0.18469,138.89,138.81,24.3279]
[1720714456380,0.18469,138.89,138.82,7.2032]
[1720714456587,0.18469,138.89,138.83,7.2028]
[1720714456982,0.18469,138.89,138.81,25.2132]
[1720714457614,0.18469,138.89,138.84,7.2024]
[1720714457817,0.18469,138.89,138.85,7.2019]
[1720714458113,0.18469,138.89,138.84,7.2024]
[1720714458301,0.18469,138.89,138.85,7.2019]
[1720714458704,0.18469,138.89,138.84,7.2024]
[1720714459017,0.18469,138.89,138.85,70.3764]
[1720714459192,0.18469,138.89,138.86,7.2014]
[1720714459511,0.18469,138.89,138.88,7.2004]
[1720714459705,0.18469,138.89,138.88,52.3704]
[1720714460594,0.18469,138.89,138.88,52.5404]
[1720714461510,0.18469,138.89,138.88,45.17]
[1720714462407,0.18469,138.89,138.88,52.5404]
[1720714465519,0.18469,138.89,138.88,45.0]
[1720714466403,0.18469,138.89,138.87,45.0]
[1720714466611,0.18469,138.89,138.86,45.0]
[1720714466991,0.18469,138.89,138.86,52.2014]
[1720714468014,0.18469,138.89,138.86,63.0034]
[1720714468221,0.18469,138.89,138.88,7.2004]
[1720714468419,0.18469,138.89,138.88,52.5404]
[1720714468923,2.88409314,138.98,138.9,100.0]
[1720714469119,29.5453,139.03,138.94,7.1972]
[1720714469414,7.1932,139.02,138.95,0.17]
[1720714469621,29.545,139.03,138.95,45.17]
[1720714469997,7.1933,139.02,138.95,45.0]
[1720714470208,7.1933,139.02,138.93,7.1974]
[1720714470209,7.1933,139.02,138.94,45.0]
[1720714470407,20.0,139.01,138.94,45.0]
[1720714470595,35.1045,139.0,138.93,45.0]
[1720714470800,20.0,138.99,138.94,7.197]
[1720714470997,20.0,138.99,138.95,45.0]
[1720714471200,20.0,138.99,138.96,25.3562]
[1720714471410,20.0,138.99,138.95,45.0]
[1720714471600,20.0,139.01,138.95,45.0]
[1720714471801,20.0,139.01,138.95,62.9919]
[1720714472003,20.0,139.01,138.95,70.1885]
[1720714472406,20.0,139.01,138.95,45.0]
[1720714472814,27.1937,139.01,138.95,45.0]
[1720714473008,20.0,139.01,138.95,45.0]
[1720714473206,20.0,139.01,138.94,52.3672]
[1720714473407,20.0,139.01,138.95,0.17]
[1720714473609,20.0,139.02,138.95,7.5367]
[1720714474018,20.0,139.02,138.96,45.0]
[1720714474217,20.0,139.02,138.95,0.34]
[1720714474526,27.1932,139.02,138.95,0.34]
[1720714474827,20.0,139.02,138.95,7.5368]
[1720714475025,20.0,139.02,138.96,46.32430989]
[1720714475527,20.0,139.02,138.96,45.0]
[1720714475709,7.1947,139.0,138.96,45.0]
[1720714476029,7.1947,139.0,138.92,7.198]
[1720714476203,7.1942,139.0,138.92,7.1983]
[1720714476405,20.0,139.02,138.9,485.5]
[1720714476406,7.1956,138.98,138.9,385.5]
[1720714476606,7.1956,138.98,138.9,7.199]
[1720714476806,7.1959,138.97,138.89,29.6274]
[1720714477018,7.1954,138.98,138.9,7.1994]
[1720714477534,29.4261,138.96,138.86,6.2823]
[1720714478023,22.2297,138.96,138.86,106.2823]
[1720714478323,15.6219,138.96,138.89,17.999]
[1720714478530,15.6219,138.96,138.91,7.1988]
[1720714478714,15.6219,138.96,138.89,25.1987]
[1720714478916,15.6219,138.96,138.9,0.17]
[1720714479104,15.6219,138.96,138.9,45.34]
[1720714479310,15.6219,138.96,138.9,52.539]
[1720714479527,15.6219,138.96,138.9,45.34]
[1720714479831,15.6219,138.96,138.9,45.17]
[1720714480407,6.4185,138.99,138.91,18.1668]
[1720714480620,20.0,138.98,138.92,45.17]
[1720714481024,6.4185,138.99,138.92,52.3682]
[1720714481233,9.27283126,138.99,138.92,52.3682]
[1720714481732,16.46763126,138.99,138.92,45.17]
[1720714481934,9.27283126,138.99,138.92,45.17]
[1720714482107,7.1953,138.98,138.92,45.17]
[1720714482308,16.46773126,138.99,138.92,45.17]
[1720714482522,7.1956,138.98,138.9,7.1992]
[1720714482734,16.46773126,138.99,138.91,7.1986]
[1720714483227,7.1952,138.98,138.9,25.1977]
[1720714483436,7.1952,138.98,138.9,17.9985]
[1720714483605,7.1957,138.97,138.9,17.9985]
[1720714483801,7.1972,138.95,138.87,18.0016]
[1720714484136,7.1964,138.96,138.88,7.2003]
[1720714484630,7.1958,138.97,138.89,7.1996]
[1720714485009,7.1958,138.97,138.9,45.0]
[1720714485429,16.46803126,138.99,138.91,0.17]
[1720714485616,27.1954,138.98,138.91,1.6064656]
[1720714486019,27.1954,138.98,138.91,0.17]
[1720714486510,20.0,138.98,138.9,45.0]
[1720714486831,20.0,138.98,138.89,45.17]
[1720714487137,7.1966,138.96,138.89,45.17]
[1720714487509,7.196,138.97,138.89,45.17]
[1720714487925,7.196,138.97,138.89,52.3699]
[1720714488435,27.1953,138.98,138.9,7.1993]
[1720714488637,7.1953,138.98,138.91,45.0]
[1720714489163,23.98141496,138.99,138.91,45.0]
[1720714489454,20.0,138.98,138.92,0.17]
[1720714489753,20.0,138.98,138.91,45.0]
[1720714489957,27.1955,138.98,138.91,45.0]
[1720714490454,7.1958,138.97,138.91,45.0]
[1720714491757,20.0,138.98,138.91,45.0]
[1720714491758,7.1963,138.96,138.91,45.0]
[1720714491934,7.196,138.97,138.91,45.0]
[1720714492337,7.196,138.97,138.9,45.0]
[1720714493058,47.92,138.98,138.9,52.1991]
[1720714493358,55.1153,138.98,138.9,52.1991]
[1720714493554,55.1153,138.98,138.9,45.0]
[1720714493555,7.1958,138.97,138.9,45.0]
[1720714493859,7.1964,138.96,138.9,45.0]
[1720714494852,14.70928905,138.97,138.9,45.0]
[1720714495051,7.51338905,138.97,138.91,18.1663]
[1720714495358,37.19283126,138.99,138.92,45.17]
[1720714495528,44.38773126,138.99,138.92,45.17]
[1720714495732,37.19283126,138.99,138.92,45.0]
[1720714495945,37.19283126,138.99,138.92,52.1983]
[1720714496157,37.19283126,138.99,138.92,45.0]
[1720714496356,9.27283126,138.99,138.92,52.1982]
[1720714496540,2.85433126,138.99,138.93,7.1976]
[1720714496857,44.0757,139.0,138.94,45.0]
[1720714497050,12.98288413,138.99,138.94,45.0]
[1720714497253,54.12851164,139.0,138.94,45.0]
[1720714497452,12.98288278,138.99,138.93,52.1978]
[1720714497653,6.0907,139.02,138.94,0.17]
[1720714497855,6.0907,139.02,138.95,25.1884]
[1720714498041,6.0907,139.02,138.96,45.0]
[1720714498239,13.2839,139.02,138.96,45.0]
[1720714498463,16.24819317,139.02,138.96,45.0]
[1720714498771,7.1942,139.0,138.95,45.0]
[1720714499059,7.1942,139.0,138.9,116.4883]
[1720714499060,7.1955,138.98,138.9,23.6874]
[1720714499269,35.1149,138.99,138.91,7.1988]
[1720714499635,35.1149,138.99,138.9,23.6875]
[1720714499835,20.17917031,138.98,138.9,23.6875]
[1720714500054,23.0885,138.98,138.89,31.8133]
[1720714500249,23.0885,138.98,138.89,24.6136]
[1720714500250,7.1958,138.97,138.89,24.6136]
[1720714500459,23.0887,138.98,138.9,7.1994]
[1720714500661,27.92,138.97,138.89,17.9993]
[1720714500869,27.92,138.97,138.86,34.4913]
[1720714501042,12.98570039,138.96,138.88,7.2]
[1720714501239,35.116,138.97,138.89,7.1999]
[1720714501663,20.1822666,138.96,138.88,18.0009]
[1720714501852,7.1965,138.96,138.88,25.2013]
[1720714502262,7.1965,138.96,138.89,45.17]
[1720714502469,15.8932,138.98,138.9,25.1973]
[1720714502637,20.0,138.97,138.91,45.0]
[1720714502842,27.1958,138.97,138.91,45.0]
[1720714503157,7.1967,138.96,138.91,45.0]
[1720714503343,7.1967,138.96,138.89,0.17]
[1720714503537,7.1967,138.96,138.88,7.2001]
[1720714503963,20.0,138.97,138.89,18.1697]
[1720714504160,12.9851493,138.96,138.89,25.5393]
[1720714504373,20.0,138.97,138.9,7.1993]
[1720714504572,12.98481529,138.96,138.91,7.1986]
[1720714504743,20.0,138.97,138.92,45.0]
[1720714505160,27.1961,138.97,138.92,45.0]
[1720714505365,12.98486202,138.96,138.92,45.0]
[1720714505665,35.1178,138.94,138.86,41.692]
[1720714505876,27.92,138.94,138.86,41.692]
[1720714506163,12.98720383,138.93,138.85,6.6143]
[1720714506393,35.1185,138.92,138.84,7.2024]
[1720714506543,16.2181,138.91,138.83,18.0067]
[1720714506745,23.4173,138.91,138.83,25.2095]
[1720714507169,6.5736,138.95,138.89,7.1997]
[1720714507444,6.5736,138.95,138.87,18.0023]
[1720714507445,12.98747121,138.94,138.87,18.0023]
[1720714507642,6.5736,138.95,138.87,18.0023]
[1720714507844,27.92,138.96,138.9,7.1994]
[1720714508038,27.92,138.96,138.91,45.17]
[1720714508270,27.92,138.96,138.91,45.0]
[1720714509265,12.9858989,138.95,138.91,45.0]
[1720714509474,27.92,138.96,138.9,45.0]
[1720714509663,27.92,138.96,138.9,52.1993]
[1720714509851,27.92,138.96,138.9,45.0]
[1720714510055,12.98538087,138.95,138.9,45.0]
[1720714510263,27.92,138.96,138.9,45.0]
[1720714510463,12.98570102,138.95,138.9,45.0]
[1720714510675,35.1164,138.96,138.9,45.0]
[1720714510982,12.985806,138.95,138.89,52.1999]
[1720714511173,35.1164,138.96,138.89,52.1999]
[1720714511174,27.92,138.96,138.89,52.1999]
[1720714511383,12.98579211,138.95,138.89,52.1999]
[1720714511557,27.92,138.96,138.89,52.1999]
[1720714511758,12.98579211,138.95,138.89,52.1999]
[1720714511979,27.92,138.96,138.89,52.1999]
[1720714512177,35.1164,138.96,138.89,45.0]